bitfinex-derivatives/quotes_BTCF0:USTF0_20241224
["timestamp","ask_amount","ask_price","bid_price","bid_amount"]
[1735047625211,0.052542,95290.0,95288.0,0.007]
[1735047625212,0.053542,95290.0,95288.0,0.007]
[1735047625923,0.052542,95290.0,95288.0,0.007]
[1735047626419,0.413342,95289.0,95288.0,0.006]
[1735047626715,0.413342,95289.0,95259.0,0.3608]
[1735047627019,0.052555,95267.0,95259.0,0.3608]
[1735047627608,0.0481,95269.0,95259.0,0.3608]
[1735047627815,0.052556,95264.0,95259.0,0.3608]
[1735047628207,0.052556,95264.0,95259.0,0.3678]
[1735047628408,0.0481,95269.0,95259.0,0.3678]
[1735047628608,0.052558,95260.0,95259.0,0.3698]
[1735047628917,0.052556,95264.0,95259.0,0.3698]
[1735047629108,0.052557,95263.0,95259.0,0.3678]
[1735047629311,0.052557,95263.0,95259.0,0.3698]
[1735047629518,0.052557,95263.0,95259.0,0.3628]
[1735047629713,0.001,95264.0,95259.0,0.3678]
[1735047629916,0.001,95260.0,95259.0,0.3698]
[1735047630212,0.001,95260.0,95259.0,0.009]
[1735047630419,0.001,95260.0,95259.0,0.007]
[1735047631118,0.001,95260.0,95259.0,0.002]
[1735047631313,0.052558,95261.0,95259.0,0.006]
[1735047631913,0.001,95260.0,95259.0,0.006]
[1735047632519,0.053558,95261.0,95259.0,0.006]
[1735047632723,0.001,95261.0,95251.0,0.36037473]
[1735047633021,0.052561,95255.0,95251.0,0.36037473]
[1735047633726,0.10738169,95261.0,95251.0,0.36037473]
[1735047633916,0.052562,95254.0,95251.0,0.36037473]
[1735047634518,0.001,95260.0,95251.0,0.36537473]
[1735047634519,0.052563,95252.0,95251.0,0.36537473]
[1735047634920,0.052563,95252.0,95251.0,0.005]
[1735047635818,0.10638169,95261.0,95243.0,0.3608]
[1735047636029,0.053563,95252.0,95251.0,0.005]
[1735047636625,0.053563,95252.0,95243.0,0.3608]
[1735047636824,0.001,95252.0,95224.0,0.052578]
[1735047637131,0.10638169,95243.0,95224.0,0.052578]
[1735047637335,0.052572,95236.0,95224.0,0.052578]
[1735047637519,0.052572,95235.0,95224.0,0.052578]
[1735047638630,0.06476307,95235.0,95226.0,0.0985]
[1735047638926,0.053572,95235.0,95226.0,0.0985]
[1735047639330,0.053572,95235.0,95223.0,0.3608]
[1735047639331,0.001,95235.0,95223.0,0.3608]
[1735047639530,0.10638169,95233.0,95216.0,0.0501]
[1735047639831,0.001,95235.0,95213.0,0.3608]
[1735047639832,0.10638169,95226.0,95213.0,0.3608]
[1735047640040,0.052582,95218.0,95213.0,0.3608]
[1735047640221,0.10638169,95226.0,95213.0,0.3608]
[1735047640533,0.10638169,95226.0,95201.0,0.3608]
[1735047640534,0.052586,95209.0,95201.0,0.3608]
[1735047640726,0.052586,95209.0,95202.0,0.3608]
[1735047641234,0.052586,95209.0,95194.0,0.24528738]
[1735047641539,0.052586,95209.0,95200.0,0.1]
[1735047641540,0.052591,95201.0,95200.0,0.1]
[1735047641736,0.052591,95201.0,95187.0,0.3608]
[1735047641737,0.052598,95188.0,95187.0,0.00152]
[1735047641928,0.052598,95188.0,95176.0,0.3608]
[1735047641929,0.052604,95177.0,95176.0,0.3608]
[1735047642234,0.3608,95192.0,95176.0,0.3608]
[1735047642235,0.052601,95184.0,95176.0,0.3608]
[1735047643134,0.10638169,95190.0,95176.0,0.3608]
[1735047643532,0.15897869,95190.0,95176.0,0.3608]
[1735047643833,0.001,95184.0,95176.0,0.3668]
[1735047644028,0.002,95184.0,95176.0,0.3668]
[1735047644529,0.049,95189.0,95176.0,0.3668]
[1735047644834,0.052604,95178.0,95176.0,0.3668]
[1735047645221,0.052604,95178.0,95176.0,0.006]
[1735047646021,0.3608,95182.0,95158.0,0.3608]
[1735047646227,0.10638169,95170.0,95158.0,0.3608]
[1735047646437,0.052609,95169.0,95158.0,0.3608]
[1735047647537,0.10738169,95170.0,95158.0,0.3608]
[1735047648035,0.001,95169.0,95158.0,0.3608]
[1735047648438,0.001,95169.0,95168.0,0.3608]
[1735047649435,0.002,95169.0,95168.0,0.3608]
[1735047649829,0.001,95169.0,95168.0,0.3608]
[1735047650136,0.001,95170.0,95168.0,0.3668]
[1735047650635,0.001,95169.0,95168.0,0.3668]
[1735047651038,0.053609,95169.0,95168.0,0.006]
[1735047651535,0.06583017,95169.0,95168.0,0.006]
[1735047651731,0.001,95169.0,95168.0,0.3668]
[1735047652936,0.002,95169.0,95168.0,0.3668]
[1735047653135,0.002,95169.0,95168.0,0.3658]
[1735047653443,0.052604,95177.0,95168.0,0.3658]
[1735047653936,0.052604,95177.0,95168.0,0.002]
[1735047654441,0.1187661,95180.0,95168.0,0.002]
[1735047654637,0.052606,95175.0,95162.0,0.051]
[1735047654845,0.052609,95170.0,95168.0,0.002]
[1735047655839,0.052604,95178.0,95168.0,0.002]
[1735047656137,0.052609,95169.0,95168.0,0.004]
[1735047656544,0.052609,95169.0,95168.0,0.3628]
[1735047656734,0.052609,95169.0,95168.0,0.3638]
[1735047656935,0.052609,95169.0,95168.0,0.003]
[1735047657237,0.052609,95169.0,95158.0,0.3608]
[1735047657435,0.052614,95159.0,95158.0,0.3608]
[1735047659435,0.052614,95159.0,95158.0,0.3648]
[1735047660038,0.052614,95159.0,95158.0,0.3638]
[1735047660243,0.052614,95159.0,95158.0,0.3678]
[1735047660544,0.053614,95159.0,95158.0,0.3678]
[1735047662051,0.053614,95159.0,95158.0,0.007]
[1735047662340,0.053614,95159.0,95141.0,0.18367462]
[1735047662341,0.052623,95142.0,95141.0,0.18367462]
[1735047662748,0.052624,95141.0,95139.0,0.24528738]
[1735047662939,0.149724,95141.0,95139.0,0.24528738]
[1735047663636,0.16122711,95141.0,95139.0,0.24528738]
[1735047664038,0.16122711,95141.0,95131.0,0.3608]
[1735047664039,0.052629,95132.0,95131.0,0.3608]
[1735047664649,0.052625,95140.0,95131.0,0.3608]
[1735047664944,0.052629,95132.0,95128.0,0.00051381]
[1735047665140,0.052631,95129.0,95128.0,0.00051381]
[1735047665337,0.052637,95118.0,95117.0,0.24528738]
[1735047665538,0.34798654,95122.0,95114.0,0.30592119]
[1735047666339,0.052641,95110.0,95104.0,0.3608]
[1735047667247,0.052645,95103.0,95102.0,0.24536773]
[1735047667943,0.3618,95110.0,95088.0,0.60616773]
[1735047667944,0.052646,95101.0,95088.0,0.60616773]
[1735047668145,0.052651,95093.0,95088.0,0.60764773]
[1735047669047,0.052651,95093.0,95088.0,0.36228]
[1735047669243,0.052651,95093.0,95088.0,0.3608]
[1735047669540,0.052651,95093.0,95072.0,0.0519]
[1735047669737,0.05266,95076.0,95072.0,0.0519]
[1735047669944,0.413461,95074.0,95072.0,0.0519]
[1735047670447,0.413461,95074.0,95073.0,0.24536773]
[1735047671745,0.413461,95074.0,95072.0,0.002]
[1735047672445,0.3608,95074.0,95058.0,0.3608]
[1735047672636,0.10638169,95068.0,95058.0,0.3608]
[1735047673549,0.049669,95060.0,95058.0,0.3608]
[1735047673744,0.052673,95053.0,95047.0,0.29676773]
[1735047674041,0.052673,95053.0,95047.0,0.0514]
[1735047674251,0.049673,95053.0,95047.0,0.0514]
[1735047675636,0.3608,95060.0,95047.0,0.0514]
[1735047675848,0.3608,95093.0,95070.0,0.052663]
[1735047676038,0.10638169,95090.0,95084.0,0.3608]
[1735047676253,0.10638169,95090.0,95076.0,0.05266]
[1735047676544,0.10638169,95090.0,95077.0,0.0492]
[1735047676942,0.052659,95079.0,95077.0,0.0492]
[1735047677342,0.001,95085.0,95077.0,0.0492]
[1735047677742,0.001,95085.0,95084.0,0.3608]
[1735047678147,0.001,95085.0,95077.0,0.0492]
[1735047678340,0.052656,95084.0,95077.0,0.101859]
[1735047678545,0.052656,95084.0,95083.0,0.3608]
[1735047679046,0.002,95090.0,95083.0,0.3608]
[1735047679244,0.054653,95090.0,95083.0,0.3608]
[1735047679448,0.001,95084.0,95083.0,0.3608]
[1735047680360,0.00049,95118.0,95083.0,0.6608]
[1735047680654,0.00049,95118.0,95116.0,0.3608]
[1735047680849,0.052639,95115.0,95105.0,0.36236]
[1735047681045,0.052639,95115.0,95113.0,0.3608]
[1735047681850,0.052639,95115.0,95109.0,0.3608]
[1735047682047,0.05264,95113.0,95109.0,0.3608]
[1735047682248,0.3608,95117.0,95106.0,0.0527]
[1735047682442,0.052643,95108.0,95106.0,0.0527]
[1735047682648,0.052643,95108.0,95096.0,0.00157732]
[1735047682649,0.052648,95098.0,95096.0,0.00157732]
[1735047683553,0.052653,95090.0,95087.0,0.3608]
[1735047683856,0.052653,95089.0,95082.0,0.24536773]
[1735047684355,0.052654,95088.0,95082.0,0.24536773]
[1735047684558,0.052654,95088.0,95073.0,0.1079]
[1735047684750,0.052654,95087.0,95073.0,0.1079]
[1735047684956,0.05265,95094.0,95075.0,0.3608]
[1735047685156,0.05265,95094.0,95093.0,0.3608]
[1735047685356,0.001,95098.0,95093.0,0.3608]
[1735047686057,0.001,95094.0,95093.0,0.3608]
[1735047686350,0.002,95094.0,95093.0,0.3608]
[1735047686856,0.001,95094.0,95093.0,0.3618]
[1735047687045,0.002,95098.0,95093.0,0.3618]
[1735047687250,0.054648,95098.0,95093.0,0.3618]
[1735047688358,0.001,95094.0,95093.0,0.3618]
[1735047688754,0.052649,95097.0,95093.0,0.3608]
[1735047688953,0.002,95098.0,95096.0,0.052649]
[1735047689153,0.3608,95109.0,95098.0,0.052648]
[1735047689363,0.3608,95109.0,95101.0,0.413446]
[1735047689866,0.3608,95109.0,95101.0,0.3608]
[1735047690164,0.052641,95111.0,95105.0,0.052644]
[1735047690358,0.052641,95111.0,95110.0,0.3608]
[1735047692272,0.053641,95111.0,95110.0,0.002]
[1735047692464,0.054641,95111.0,95110.0,0.002]
[1735047700077,0.002,95111.0,95110.0,0.302]
[1735047700278,0.48594464,95130.0,95123.0,0.052634]
[1735047700279,0.12514464,95130.0,95123.0,0.052634]
[1735047700470,0.09017312,95130.0,95129.0,0.052631]
[1735047701476,0.00044,95137.0,95124.0,0.3608]
[1735047701682,0.00044,95137.0,95136.0,0.413427]
[1735047702073,0.15636347,95167.0,95149.0,0.15955771]
[1735047702276,0.15636347,95167.0,95156.0,0.3608]
[1735047702479,0.0542,95171.0,95156.0,0.3608]
[1735047702680,0.052612,95163.0,95156.0,0.3608]
[1735047703182,0.3608,95172.0,95156.0,0.3608]
[1735047703481,0.1,95200.0,95156.0,0.3608]
[1735047703482,0.3608,95194.0,95168.0,0.3608]
[1735047703684,0.3608,95194.0,95172.0,0.052607]
[1735047703988,0.1,95200.0,95177.0,0.3608]
[1735047704188,0.15636347,95198.0,95180.0,0.3608]
[1735047704387,0.15636347,95198.0,95192.0,0.052595]
[1735047704575,0.15636347,95198.0,95191.0,0.3608]
[1735047704576,0.15636347,95198.0,95197.0,0.052593]
[1735047705384,0.28325593,95235.0,95197.0,0.3]
[1735047705580,0.28325593,95235.0,95219.0,0.3608]
[1735047705881,0.052572,95236.0,95219.0,0.3608]
[1735047706581,0.413369,95240.0,95219.0,0.3608]
[1735047707682,0.3608,95248.0,95231.0,0.3608]
[1735047708472,0.001,95240.0,95231.0,0.3608]
[1735047709281,0.001,95240.0,95239.0,0.05257]
[1735047710076,0.3618,95248.0,95239.0,0.05257]
[1735047710280,0.20404972,95248.0,95240.0,0.3608]
[1735047710785,0.20304972,95248.0,95240.0,0.3608]
[1735047711185,0.20404972,95248.0,95240.0,0.3608]
[1735047711485,0.20404972,95248.0,95240.0,0.3618]
[1735047711884,0.20304972,95248.0,95240.0,0.3618]
[1735047712082,0.001,95248.0,95240.0,0.3658]
[1735047712287,0.001,95248.0,95240.0,0.7276]
[1735047713578,0.001,95248.0,95240.0,0.7266]
[1735047713784,0.001,95248.0,95240.0,0.7306]
[1735047713980,1.38,95257.0,95240.0,0.7256]
[1735047714190,0.001,95248.0,95240.0,0.7346]
[1735047714389,0.001,95248.0,95240.0,0.7326]
[1735047714589,1.38,95257.0,95240.0,0.7236]
[1735047714777,0.001,95248.0,95240.0,0.7286]
[1735047715183,0.052568,95243.0,95217.0,0.3608]
[1735047715487,0.15955771,95227.0,95218.0,0.3608]
[1735047715688,0.15955771,95228.0,95218.0,0.3608]
[1735047717491,0.15955771,95228.0,95218.0,0.3648]
[1735047717686,0.16055771,95228.0,95218.0,0.3698]
[1735047718390,0.3608,95224.0,95218.0,0.009]
[1735047719591,0.3608,95224.0,95218.0,0.005]
[1735047719791,0.052581,95219.0,95218.0,0.009]
[1735047720087,0.052581,95219.0,95218.0,0.004]
[1735047720296,0.052581,95219.0,95218.0,0.009]
[1735047720996,0.052581,95219.0,95218.0,0.006]
[1735047721199,0.3608,95243.0,95218.0,0.3628]
[1735047721395,0.0591,95252.0,95237.0,0.3608]
[1735047721593,0.0591,95252.0,95238.0,0.05257]
[1735047721796,0.0591,95252.0,95237.0,0.3608]
[1735047721797,0.052564,95251.0,95237.0,0.3608]
[1735047721989,0.15955771,95250.0,95237.0,0.3608]
[1735047722189,0.052566,95246.0,95237.0,0.3608]
[1735047722694,0.15955771,95250.0,95228.0,0.3608]
[1735047722897,0.52035771,95238.0,95218.0,0.002]
[1735047723094,0.052576,95229.0,95218.0,0.002]
[1735047723296,0.052578,95224.0,95218.0,0.001]
[1735047723496,0.052578,95224.0,95218.0,0.003]
[1735047724392,0.052578,95224.0,95218.0,0.006]
[1735047724595,0.052581,95219.0,95218.0,0.006]
[1735047725100,0.052581,95219.0,95218.0,0.012]
[1735047725298,0.3608,95220.0,95218.0,0.012]
[1735047725889,0.002,95224.0,95218.0,0.012]
[1735047726396,0.52035771,95230.0,95218.0,0.003]
[1735047726597,0.001,95224.0,95218.0,0.01]
[1735047727093,0.052581,95220.0,95218.0,0.007]
[1735047727299,0.052581,95220.0,95218.0,0.005]
[1735047727703,0.052581,95220.0,95218.0,0.003]
[1735047727898,0.052581,95220.0,95218.0,0.002]
[1735047728598,0.06411651,95220.0,95218.0,0.002]
[1735047729203,0.05259,95203.0,95202.0,0.3608]
[1735047729592,0.052586,95210.0,95202.0,0.3608]
[1735047729995,0.15955771,95212.0,95202.0,0.3608]
[1735047730190,0.052587,95208.0,95202.0,0.3608]
[1735047730393,0.001,95203.0,95202.0,0.3708]
[1735047730800,0.001,95203.0,95202.0,0.42339]
[1735047731004,0.001,95210.0,95202.0,0.42339]
[1735047731205,0.001,95210.0,95202.0,0.3708]
[1735047731397,0.052586,95209.0,95202.0,0.3708]
[1735047731795,0.001,95210.0,95202.0,0.3708]
[1735047732601,0.001,95203.0,95202.0,0.3648]
[1735047732796,0.001,95203.0,95202.0,0.3668]
[1735047733105,0.052584,95214.0,95202.0,0.3628]
[1735047733399,0.001,95210.0,95202.0,0.3648]
[1735047733610,0.001,95210.0,95202.0,0.61316773]
[1735047733794,0.001,95203.0,95202.0,0.61316773]
[1735047734901,0.001,95203.0,95202.0,0.3678]
[1735047735501,0.052586,95211.0,95202.0,0.3638]
[1735047735697,0.001,95210.0,95202.0,0.3648]
[1735047735892,0.001,95210.0,95202.0,0.3678]
[1735047736097,0.01134639,95214.0,95202.0,0.3638]
[1735047736297,0.001,95203.0,95202.0,0.3678]
[1735047736498,0.001,95203.0,95202.0,0.3648]
[1735047736692,0.05259,95204.0,95202.0,0.3668]
[1735047737204,0.05259,95204.0,95202.0,0.002]
[1735047737408,0.05259,95204.0,95202.0,0.006]
[1735047737598,0.06354147,95204.0,95202.0,0.006]
[1735047738807,0.06354147,95204.0,95202.0,0.002]
[1735047739105,0.06354147,95204.0,95190.0,0.30592119]
[1735047739106,0.06454147,95204.0,95190.0,0.24588705]
[1735047739311,0.052596,95191.0,95190.0,0.24588705]
[1735047739503,0.052596,95191.0,95183.0,0.30592119]
[1735047739806,0.4134,95184.0,95183.0,0.30592119]
[1735047740394,0.3608,95184.0,95174.0,0.30592119]
[1735047740607,0.15955771,95184.0,95183.0,0.004]
[1735047740907,0.0526,95185.0,95183.0,0.009]
[1735047742906,0.0588,95184.0,95183.0,0.005]
[1735047743103,0.052601,95183.0,95170.0,0.00157604]
[1735047743299,0.052607,95171.0,95170.0,0.00157604]
[1735047745602,0.052607,95171.0,95170.0,0.00357604]
[1735047746212,0.052607,95171.0,95170.0,0.00257604]
[1735047746515,0.052607,95171.0,95170.0,0.00357604]
[1735047747204,0.052607,95171.0,95170.0,0.002]
[1735047750913,0.052625,95140.0,95138.0,0.30592119]
[1735047751406,0.052623,95144.0,95138.0,0.30592119]
[1735047751610,0.3608,95147.0,95138.0,0.30592119]
[1735047752610,0.001,95144.0,95138.0,0.30692119]
[1735047752913,0.001,95144.0,95138.0,0.057626]
[1735047753114,0.3628,95147.0,95138.0,0.057626]
[1735047753506,0.3618,95147.0,95138.0,0.057626]
[1735047753816,0.001,95147.0,95138.0,0.057626]
[1735047754503,0.001,95147.0,95139.0,0.3608]
[1735047754703,0.052621,95148.0,95139.0,0.3608]
[1735047754704,0.001,95144.0,95139.0,0.3608]
[1735047755314,0.001,95147.0,95139.0,0.3608]
[1735047755912,0.001,95144.0,95139.0,0.3608]
[1735047756111,0.001,95144.0,95139.0,0.3638]
[1735047756417,0.052621,95146.0,95139.0,0.3638]
[1735047757014,0.001,95147.0,95139.0,0.3638]
[1735047757213,0.052623,95143.0,95139.0,0.3638]
[1735047758016,0.052624,95141.0,95139.0,0.3638]
[1735047759114,0.053624,95141.0,95139.0,0.3608]
[1735047759315,0.053624,95141.0,95139.0,0.3628]
[1735047759510,0.001,95141.0,95140.0,0.052625]
[1735047759717,0.052617,95154.0,95144.0,0.052622]
[1735047759907,0.052609,95168.0,95144.0,0.052622]
[1735047760111,0.052617,95153.0,95144.0,0.052622]
[1735047760819,0.052619,95151.0,95144.0,0.052622]
[1735047761018,0.37205873,95159.0,95140.0,0.1743]
[1735047761219,0.052615,95158.0,95140.0,0.1743]
[1735047761420,0.2119616,95150.0,95140.0,0.1743]
[1735047761620,0.001,95141.0,95140.0,0.1743]
[1735047761918,0.001,95141.0,95140.0,0.226925]
[1735047762317,0.052616,95155.0,95140.0,0.1743]
[1735047762919,0.052618,95153.0,95145.0,0.052622]
[1735047763621,0.052618,95153.0,95147.0,0.3608]
[1735047764414,0.052618,95152.0,95147.0,0.3608]
[1735047765016,0.1593426,95160.0,95147.0,0.3608]
[1735047765319,0.001,95153.0,95147.0,0.3608]
[1735047765914,0.001,95152.0,95147.0,0.3608]
[1735047766522,0.001,95153.0,95147.0,0.3628]
[1735047766919,0.17066946,95160.0,95147.0,0.3628]
[1735047767218,0.001,95152.0,95147.0,0.3628]
[1735047767429,0.052619,95150.0,95147.0,0.3628]
[1735047769324,0.053619,95150.0,95147.0,0.3628]
[1735047771523,0.001,95150.0,95147.0,0.3628]
[1735047771825,0.01144191,95156.0,95147.0,0.3608]
[1735047771826,0.052617,95155.0,95147.0,0.3608]
[1735047772026,0.001,95150.0,95148.0,0.05262]
[1735047772423,0.052617,95154.0,95148.0,0.05262]
[1735047772622,0.001,95150.0,95148.0,0.05262]
[1735047773026,0.052617,95154.0,95148.0,0.05262]
[1735047773329,0.001,95150.0,95148.0,0.05262]
[1735047773522,0.001,95150.0,95148.0,0.05462]
[1735047774925,0.001,95150.0,95148.0,0.05262]
[1735047775232,0.052618,95153.0,95148.0,0.05462]
[1735047775417,0.001,95154.0,95148.0,0.002]
[1735047775622,0.052618,95153.0,95148.0,0.002]
[1735047775832,0.052618,95152.0,95148.0,0.002]
[1735047776125,0.052618,95152.0,95147.0,0.41342]
[1735047776126,0.001,95150.0,95147.0,0.41494]
[1735047776324,0.001,95150.0,95148.0,0.002]
[1735047776527,0.052618,95152.0,95148.0,0.002]
[1735047776727,0.001,95154.0,95148.0,0.002]
[1735047776928,0.052619,95150.0,95148.0,0.002]
[1735047777530,0.052619,95150.0,95148.0,0.3628]
[1735047777927,0.052619,95150.0,95148.0,0.3608]
[1735047778120,0.052619,95150.0,95148.0,0.002]
[1735047778726,0.001,95150.0,95139.0,0.3608]
[1735047779022,0.05262,95149.0,95148.0,0.002]
[1735047779223,0.001,95150.0,95148.0,0.002]
[1735047779423,0.001,95150.0,95148.0,0.41542]
[1735047779825,0.12633865,95150.0,95149.0,0.11002]
[1735047780019,0.001,95150.0,95149.0,0.11002]
[1735047780835,0.052607,95173.0,95160.0,0.052613]
[1735047781031,0.0587,95182.0,95165.0,0.3608]
[1735047781334,0.0587,95182.0,95179.0,0.052603]
[1735047781521,0.0587,95182.0,95176.0,0.3608]
[1735047781725,0.052606,95175.0,95165.0,0.3608]
[1735047781922,0.15879963,95175.0,95165.0,0.3608]
[1735047782331,0.052609,95170.0,95165.0,0.3608]
[1735047782524,0.10619363,95175.0,95165.0,0.3608]
[1735047782828,0.10619363,95175.0,95138.0,0.3608]
[1735047782829,0.052615,95158.0,95138.0,0.3608]
[1735047783132,0.052621,95147.0,95134.0,0.052628]
[1735047783529,0.052622,95146.0,95128.0,0.3608]
[1735047783735,0.052622,95146.0,95136.0,0.413427]
[1735047784128,0.10619363,95148.0,95136.0,0.052627]
[1735047784328,0.052623,95143.0,95129.0,0.05263]
[1735047784530,0.10619363,95140.0,95130.0,0.05263]
[1735047785046,0.10619363,95140.0,95138.0,0.004]
[1735047785234,0.052624,95141.0,95138.0,0.004]
[1735047785738,0.053625,95140.0,95139.0,0.30904653]
[1735047786123,0.052625,95140.0,95139.0,0.30904653]
[1735047786427,0.053625,95140.0,95139.0,0.30904653]
[1735047787035,0.001,95140.0,95139.0,0.30904653]
[1735047787235,0.001,95140.0,95139.0,0.052625]
[1735047787835,0.15759083,95151.0,95150.0,0.052619]
[1735047788036,0.01130157,95174.0,95158.0,0.052615]
[1735047788239,0.35765546,95176.0,95158.0,0.413415]
[1735047788428,0.15761445,95162.0,95159.0,0.052614]
[1735047788630,0.15761445,95162.0,95161.0,0.052613]
[1735047789845,0.001,95162.0,95161.0,0.052613]
[1735047790041,0.002,95162.0,95161.0,0.052613]
[1735047791438,0.001,95162.0,95161.0,0.052613]
[1735047791635,0.002,95162.0,95159.0,0.18542403]
[1735047791945,0.052614,95160.0,95159.0,0.18542403]
[1735047792331,0.052614,95160.0,95158.0,0.18542403]
[1735047793142,0.053614,95160.0,95158.0,0.18542403]
[1735047793546,0.053614,95160.0,95158.0,0.001]
[1735047793839,0.001,95160.0,95158.0,0.001]
[1735047794138,0.001,95160.0,95159.0,0.052614]
[1735047794549,0.052612,95164.0,95158.0,0.001]
[1735047794740,0.052612,95164.0,95161.0,0.052613]
[1735047795143,0.052616,95156.0,95154.0,0.18542403]
[1735047796040,0.052616,95156.0,95153.0,0.052617]
[1735047796241,0.001,95160.0,95153.0,0.052617]
[1735047796444,0.052616,95155.0,95153.0,0.052617]
[1735047796749,0.052616,95155.0,95154.0,0.002]
[1735047797050,0.001,95160.0,95155.0,0.052616]
[1735047797242,0.001,95160.0,95158.0,0.052614]
[1735047797752,0.18910899,95184.0,95173.0,0.052606]
[1735047798047,0.052602,95181.0,95173.0,0.052606]
[1735047798949,0.01109683,95183.0,95162.0,0.1799]
[1735047798950,0.413405,95175.0,95166.0,0.05261]
[1735047799138,0.3618,95175.0,95173.0,0.052606]
[1735047801442,0.3608,95175.0,95166.0,0.001]
[1735047801660,0.3608,95167.0,95166.0,0.001]
[1735047802242,0.3608,95167.0,95163.0,0.18542403]
[1735047802243,0.41341,95167.0,95163.0,0.18542403]
[1735047802943,0.41341,95167.0,95162.0,0.052612]
[1735047803141,0.41341,95167.0,95166.0,0.002]
[1735047803650,0.052616,95157.0,95148.0,0.18542403]
[1735047803872,0.3608,95152.0,95148.0,0.18542403]
[1735047804047,0.3608,95152.0,95143.0,0.052622]
[1735047804048,0.3608,95152.0,95146.0,0.18542403]
[1735047804757,0.052621,95148.0,95146.0,0.18542403]
[1735047805647,0.063,95151.0,95146.0,0.002]
[1735047805845,0.052621,95147.0,95146.0,0.004]
[1735047806245,0.052621,95147.0,95146.0,0.002]
[1735047806458,0.052621,95147.0,95146.0,0.004]
[1735047806844,0.112821,95147.0,95146.0,0.004]
[1735047807248,0.052621,95147.0,95146.0,0.004]
[1735047807442,0.052621,95147.0,95146.0,0.003]
[1735047808066,0.001,95147.0,95146.0,0.001]
[1735047808254,0.001,95147.0,95146.0,0.002]
[1735047808455,0.001,95147.0,95146.0,0.054621]
[1735047808656,0.052614,95160.0,95152.0,0.052618]
[1735047808862,0.05261,95167.0,95157.0,0.052615]
[1735047809066,0.052611,95165.0,95161.0,0.052613]
[1735047809366,0.0603,95169.0,95163.0,0.052612]
[1735047809666,0.0603,95169.0,95155.0,0.3608]
[1735047809862,0.3608,95171.0,95170.0,0.052608]
[1735047811063,0.3608,95171.0,95161.0,0.052613]
[1735047811367,0.3608,95171.0,95162.0,0.052612]
[1735047811565,0.3608,95171.0,95155.0,0.54770403]
[1735047811765,0.3648,95171.0,95163.0,0.052612]
[1735047811960,0.3718,95171.0,95163.0,0.052612]
[1735047812459,0.3608,95171.0,95163.0,0.052612]
[1735047812659,0.3618,95171.0,95163.0,0.052612]
[1735047812860,0.3618,95171.0,95162.0,0.002]
[1735047812861,0.3618,95171.0,95170.0,0.052608]
[1735047813165,0.001,95171.0,95170.0,0.052608]
[1735047814568,0.052604,95177.0,95170.0,0.052608]
[1735047815564,0.3608,95181.0,95156.0,0.18542403]
[1735047815761,0.3608,95171.0,95165.0,0.052611]
[1735047816269,0.3608,95171.0,95156.0,0.18542403]
[1735047816471,0.3608,95171.0,95160.0,0.052613]
[1735047816674,0.3608,95163.0,95156.0,0.18542403]
[1735047816862,0.413412,95163.0,95156.0,0.18542403]
[1735047817169,0.0602,95162.0,95159.0,0.052614]
[1735047818257,0.0602,95162.0,95156.0,0.003]
[1735047818771,0.0602,95162.0,95159.0,0.002]
[1735047818965,0.052613,95161.0,95159.0,0.002]
[1735047819866,0.0612,95162.0,95159.0,0.002]
[1735047820067,0.0612,95162.0,95151.0,0.052618]
[1735047820369,0.001,95162.0,95161.0,0.052613]
[1735047820565,0.3608,95163.0,95161.0,0.052613]
[1735047820766,0.3608,95163.0,95156.0,0.002]
[1735047820959,0.3608,95163.0,95159.0,0.001]
[1735047821368,0.413412,95163.0,95159.0,0.001]
[1735047821868,0.413412,95163.0,95161.0,0.002]
[1735047822175,0.3608,95163.0,95161.0,0.002]
[1735047822364,0.001,95162.0,95161.0,0.002]
[1735047822760,0.3608,95163.0,95161.0,0.002]
[1735047823373,0.3608,95163.0,95162.0,0.052612]
[1735047823877,0.05261,95167.0,95162.0,0.052612]
[1735047824075,0.37193763,95171.0,95157.0,0.3608]
[1735047824269,0.37193763,95171.0,95163.0,0.052612]
[1735047824471,0.42454563,95171.0,95163.0,0.052612]
[1735047825679,0.42554563,95171.0,95163.0,0.052612]
[1735047825876,0.052609,95169.0,95163.0,0.052612]
[1735047826577,0.37193763,95171.0,95164.0,0.052611]
[1735047826773,0.37293763,95171.0,95164.0,0.052611]
[1735047826981,0.42554563,95171.0,95164.0,0.052611]
[1735047827279,0.052609,95169.0,95163.0,0.001]
[1735047827479,0.05261,95167.0,95163.0,0.001]
[1735047828077,0.05261,95167.0,95159.0,0.052614]
[1735047828078,0.05261,95167.0,95164.0,0.001]
[1735047829084,0.05361,95167.0,95164.0,0.001]
[1735047829476,0.05261,95167.0,95164.0,0.001]
[1735047829674,0.05261,95167.0,95159.0,0.052614]
[1735047829879,0.05261,95166.0,95163.0,0.001]
[1735047830179,0.052611,95164.0,95163.0,0.001]
[1735047830987,0.37193763,95171.0,95164.0,0.001]
[1735047831370,0.42454563,95171.0,95164.0,0.001]
[1735047831581,0.37193763,95171.0,95164.0,0.001]
[1735047831778,0.052608,95170.0,95164.0,0.001]
[1735047832085,0.052609,95169.0,95164.0,0.001]
[1735047832679,0.052609,95169.0,95160.0,0.052613]